[Event "*** Titled Tuesday Blitz"]
[Site "Chess.com"]
[Date "2019.02.05"]
[Round "9"]
[White "HindsightIs2700"]
[Black "Manukyan_Artak"]
[Result "0-1"]
[WhiteElo "2250"]
[BlackElo "2392"]
[TimeControl "180+2"]
[EndTime "15:14:13 PST"]
[Termination "Manukyan_Artak won on time"]

1. e4 {[%clk 0:03:01.9]} 1... c6 {[%clk 0:03:00.9]} 2. d4 {[%clk 0:03:02.1]}
2... d5 {[%clk 0:03:02.4]} 3. Nd2 {[%clk 0:03:03.8]} 3... dxe4 {[%clk
0:03:03.1]} 4. Nxe4 {[%clk 0:03:05.7]} 4... Nf6 {[%clk 0:03:04.8]} 5. Nxf6+
{[%clk 0:03:06.4]} 5... exf6 {[%clk 0:03:06.7]} 6. c3 {[%clk 0:03:06.5]} 6...
Bd6 {[%clk 0:03:07.5]} 7. Bd3 {[%clk 0:03:07.2]} 7... O-O {[%clk 0:03:06.8]} 8.
Qc2 {[%clk 0:03:06.9]} 8... h6 {[%clk 0:03:05.9]} 9. Ne2 {[%clk 0:03:02.1]} 9...
Qc7 {[%clk 0:03:06.5]} 10. Be3 {[%clk 0:03:00.5]} 10... c5 {[%clk 0:03:07.7]}
11. dxc5 {[%clk 0:02:47.6]} 11... Bxc5 {[%clk 0:03:08.2]} 12. Bxc5 {[%clk
0:02:48.8]} 12... Qxc5 {[%clk 0:03:09]} 13. O-O {[%clk 0:02:49.9]} 13... Nc6
{[%clk 0:03:09.2]} 14. Rad1 {[%clk 0:02:46.2]} 14... Bg4 {[%clk 0:03:07.6]} 15.
Kh1 {[%clk 0:02:43.1]} 15... Rad8 {[%clk 0:02:53]} 16. f3 {[%clk 0:02:43.3]}
16... Be6 {[%clk 0:02:49]} 17. Nf4 {[%clk 0:02:38.2]} 17... Bc4 {[%clk 0:02:39]}
18. Bh7+ {[%clk 0:02:31.7]} 18... Kh8 {[%clk 0:02:39.2]} 19. Rfe1 {[%clk
0:02:22.9]} 19... Rxd1 {[%clk 0:02:14.3]} 20. Rxd1 {[%clk 0:02:24.8]} 20... Qe5
{[%clk 0:02:14.8]} 21. Qe4 {[%clk 0:02:15.6]} 21... Bxa2 {[%clk 0:02:01.8]} 22.
Bf5 {[%clk 0:01:51.2]} 22... Rd8 {[%clk 0:01:51.8]} 23. Rxd8+ {[%clk 0:01:49.5]}
23... Nxd8 {[%clk 0:01:52.8]} 24. Qxe5 {[%clk 0:01:40.5]} 24... fxe5 {[%clk
0:01:53.6]} 25. Nd3 {[%clk 0:01:42.1]} 25... f6 {[%clk 0:01:52]} 26. Kg1 {[%clk
0:01:23.5]} 26... Bb1 {[%clk 0:01:50.1]} 27. Be4 {[%clk 0:01:18.8]} 27... Bxd3
{[%clk 0:01:42.2]} 28. Bxd3 {[%clk 0:01:19.3]} 28... Kg8 {[%clk 0:01:43.8]} 29.
Bc4+ {[%clk 0:01:18]} 29... Kf8 {[%clk 0:01:44.6]} 30. Bd5 {[%clk 0:01:19.4]}
30... Ke7 {[%clk 0:01:44.6]} 31. Kf2 {[%clk 0:01:19.4]} 31... Kd6 {[%clk
0:01:45.8]} 32. c4 {[%clk 0:01:20.5]} 32... b5 {[%clk 0:01:43.9]} 33. Bg8 {[%clk
0:01:10.3]} 33... bxc4 {[%clk 0:01:36.6]} 34. Bxc4 {[%clk 0:01:12.2]} 34... Kc5
{[%clk 0:01:37.3]} 35. Bg8 {[%clk 0:01:08.5]} 35... Kd4 {[%clk 0:01:32.4]} 36.
Kg3 {[%clk 0:01:03.1]} 36... f5 {[%clk 0:01:19.9]} 37. Bh7 {[%clk 0:00:57.1]}
37... e4 {[%clk 0:01:09.6]} 38. Bxf5 {[%clk 0:00:51.6]} 38... e3 {[%clk
0:01:10.6]} 39. f4 {[%clk 0:00:50.2]} 39... Nc6 {[%clk 0:01:01.7]} 40. Kf3
{[%clk 0:00:48.2]} 40... Nb4 {[%clk 0:00:58.9]} 41. Ke2 {[%clk 0:00:46.3]} 41...
a5 {[%clk 0:00:53.9]} 42. h4 {[%clk 0:00:44.2]} 42... Nd5 {[%clk 0:00:51.5]} 43.
g3 {[%clk 0:00:44.3]} 43... Nf6 {[%clk 0:00:51.9]} 44. Bd3 {[%clk 0:00:23.1]}
44... Ne4 {[%clk 0:00:44.1]} 45. Bxe4 {[%clk 0:00:14.2]} 45... Kxe4 {[%clk
0:00:44.8]} 46. h5 {[%clk 0:00:13.2]} 46... a4 {[%clk 0:00:44.1]} 47. Ke1 {[%clk
0:00:09.2]} 47... Kf3 {[%clk 0:00:43.6]} 48. f5 {[%clk 0:00:09.5]} 48... Kxg3
{[%clk 0:00:42.4]} 49. Ke2 {[%clk 0:00:10.9]} 49... Kf4 {[%clk 0:00:43.5]} 50.
Kd3 {[%clk 0:00:10.3]} 50... Kf3 {[%clk 0:00:43.8]} 0-1

[Event "*** Titled Tuesday Blitz"]
[Site "Chess.com"]
[Date "2019.02.05"]
[Round "9"]
[White "washburn06"]
[Black "CookiesAndIceCream"]
[Result "1-0"]
[WhiteElo "2433"]
[BlackElo "2273"]
[TimeControl "180+2"]
[EndTime "15:14:14 PST"]
[Termination "washburn06 won by resignation"]

1. d4 {[%clk 0:02:08.9]} 1... d5 {[%clk 0:02:58.1]} 2. Bg5 {[%clk 0:02:08.4]}
2... Nf6 {[%clk 0:02:56.8]} 3. Bxf6 {[%clk 0:02:09.2]} 3... exf6 {[%clk
0:02:55.9]} 4. e3 {[%clk 0:02:10.8]} 4... Bd6 {[%clk 0:02:50.3]} 5. g3 {[%clk
0:02:10]} 5... O-O {[%clk 0:02:45.6]} 6. Bg2 {[%clk 0:02:11.6]} 6... c6 {[%clk
0:02:46.3]} 7. Ne2 {[%clk 0:02:12.9]} 7... f5 {[%clk 0:02:40.5]} 8. O-O {[%clk
0:02:14.1]} 8... Nd7 {[%clk 0:02:41.6]} 9. Nd2 {[%clk 0:02:09.1]} 9... Nf6
{[%clk 0:02:41.8]} 10. c4 {[%clk 0:02:05.4]} 10... Be6 {[%clk 0:02:32.5]} 11.
cxd5 {[%clk 0:02:02.8]} 11... Bxd5 {[%clk 0:02:29]} 12. Nc3 {[%clk 0:01:58]}
12... Bxg2 {[%clk 0:02:26.1]} 13. Kxg2 {[%clk 0:01:59.9]} 13... Re8 {[%clk
0:02:23.5]} 14. Nc4 {[%clk 0:01:58.1]} 14... Bc7 {[%clk 0:02:19.8]} 15. Qf3
{[%clk 0:01:58.4]} 15... g6 {[%clk 0:02:17.6]} 16. Rfd1 {[%clk 0:01:50.9]} 16...
Ne4 {[%clk 0:02:11.1]} 17. d5 {[%clk 0:01:22]} 17... Nxc3 {[%clk 0:01:37.8]} 18.
bxc3 {[%clk 0:01:23.9]} 18... cxd5 {[%clk 0:01:37.3]} 19. Rxd5 {[%clk
0:01:19.6]} 19... Qf6 {[%clk 0:01:30.3]} 20. Rd7 {[%clk 0:01:05.1]} 20... Qxc3
{[%clk 0:01:12.7]} 21. Qd5 {[%clk 0:01:05.1]} 21... Rf8 {[%clk 0:01:04]} 22. Rb1
{[%clk 0:00:46.2]} 22... Rad8 {[%clk 0:01:02]} 23. Rxb7 {[%clk 0:00:44.3]} 23...
Rxd7 {[%clk 0:01:01.7]} 24. Qxd7 {[%clk 0:00:44.1]} 24... Qxc4 {[%clk 0:00:56]}
25. Rxc7 {[%clk 0:00:41.7]} 25... Qe4+ {[%clk 0:00:52]} 26. Kg1 {[%clk 0:00:40]}
26... Qb1+ {[%clk 0:00:50.6]} 27. Kg2 {[%clk 0:00:41.3]} 27... Qe4+ {[%clk
0:00:49.3]} 28. Kg1 {[%clk 0:00:40.4]} 28... a5 {[%clk 0:00:47.4]} 29. a3 {[%clk
0:00:28.7]} 29... h5 {[%clk 0:00:33.9]} 30. Qd4 {[%clk 0:00:29]} 30... Qb1+
{[%clk 0:00:28.1]} 31. Kg2 {[%clk 0:00:29.2]} 31... Qb3 {[%clk 0:00:26.7]} 32.
Qc5 {[%clk 0:00:30]} 32... a4 {[%clk 0:00:24.9]} 33. Qe7 {[%clk 0:00:31.5]}
33... Qd3 {[%clk 0:00:21.8]} 34. h4 {[%clk 0:00:31.3]} 34... Qd5+ {[%clk
0:00:22.4]} 35. Kh2 {[%clk 0:00:32.1]} 35... Qd2 {[%clk 0:00:23]} 36. Kg2 {[%clk
0:00:33.3]} 36... Qd5+ {[%clk 0:00:24.1]} 37. Kg1 {[%clk 0:00:35]} 37... Qd1+
{[%clk 0:00:25]} 38. Kh2 {[%clk 0:00:36.6]} 38... Qf3 {[%clk 0:00:26.1]} 39. Kg1
{[%clk 0:00:37.8]} 39... Qd1+ {[%clk 0:00:22]} 40. Kg2 {[%clk 0:00:39.1]} 40...
Qd5+ {[%clk 0:00:23.3]} 41. Kh2 {[%clk 0:00:38.4]} 41... Qa2 {[%clk 0:00:22.7]}
42. Kg1 {[%clk 0:00:35]} 42... Rb8 {[%clk 0:00:21.5]} 43. Kg2 {[%clk 0:00:13.9]}
43... Qd5+ {[%clk 0:00:21.3]} 44. Kh2 {[%clk 0:00:14.2]} 44... Rb1 {[%clk
0:00:12.4]} 45. e4 {[%clk 0:00:12.3]} 45... fxe4 {[%clk 0:00:10.5]} 46. Rc8+
{[%clk 0:00:11.2]} 46... Kh7 {[%clk 0:00:11.2]} 47. Qf6 {[%clk 0:00:10.1]} 1-0

[Event "*** Titled Tuesday Blitz"]
[Site "Chess.com"]
[Date "2019.02.05"]
[Round "9"]
[White "yuki_chess123"]
[Black "evgenysharapov"]
[Result "0-1"]
[WhiteElo "2039"]
[BlackElo "2338"]
[TimeControl "180+2"]
[EndTime "15:14:16 PST"]
[Termination "evgenysharapov won by resignation"]

1. e4 {[%clk 0:02:49.6]} 1... c5 {[%clk 0:03:00.4]} 2. Nf3 {[%clk 0:02:50]} 2...
d6 {[%clk 0:03:01]} 3. Bb5+ {[%clk 0:02:50.5]} 3... Bd7 {[%clk 0:02:59.3]} 4.
Bxd7+ {[%clk 0:02:51.1]} 4... Qxd7 {[%clk 0:03:00.1]} 5. O-O {[%clk 0:02:52.6]}
5... Nf6 {[%clk 0:03:00.8]} 6. d3 {[%clk 0:02:53.5]} 6... Nc6 {[%clk 0:03:01.1]}
7. Nc3 {[%clk 0:02:54.5]} 7... g6 {[%clk 0:03:00.3]} 8. Ng5 {[%clk 0:02:55]}
8... h6 {[%clk 0:02:59.5]} 9. Nh3 {[%clk 0:02:55.4]} 9... Bg7 {[%clk 0:03:00.2]}
10. f4 {[%clk 0:02:56.5]} 10... e6 {[%clk 0:02:53.5]} 11. f5 {[%clk 0:02:55.4]}
11... O-O-O {[%clk 0:02:44.5]} 12. fxe6 {[%clk 0:02:54.6]} 12... fxe6 {[%clk
0:02:44.7]} 13. Be3 {[%clk 0:02:45.5]} 13... Rdf8 {[%clk 0:02:42.9]} 14. Nf4
{[%clk 0:02:44.6]} 14... Ne5 {[%clk 0:02:40.1]} 15. Kh1 {[%clk 0:02:37.9]} 15...
g5 {[%clk 0:02:35.1]} 16. Nfe2 {[%clk 0:02:06.6]} 16... Nfg4 {[%clk 0:02:31.3]}
17. Bg1 {[%clk 0:02:06.8]} 17... Rxf1 {[%clk 0:02:30.7]} 18. Qxf1 {[%clk
0:02:07]} 18... Rf8 {[%clk 0:02:31.6]} 19. Qe1 {[%clk 0:02:08.5]} 19... Qf7
{[%clk 0:02:23.6]} 20. d4 {[%clk 0:02:02.5]} 20... Nf3 {[%clk 0:02:11.5]} 21.
Qg3 {[%clk 0:01:59.1]} 21... Nxg1 {[%clk 0:02:09.5]} 22. Kxg1 {[%clk 0:01:40.8]}
22... cxd4 {[%clk 0:01:36.9]} 23. Nb5 {[%clk 0:01:26]} 23... Qf2+ {[%clk
0:01:29.8]} 24. Qxf2 {[%clk 0:01:25.8]} 24... Nxf2 {[%clk 0:01:30.2]} 25. Nbxd4
{[%clk 0:01:03.9]} 25... Kd7 {[%clk 0:01:25.8]} 26. e5 {[%clk 0:00:30.8]} 26...
dxe5 {[%clk 0:01:17]} 27. Nb3 {[%clk 0:00:28.5]} 27... b6 {[%clk 0:01:09.6]} 28.
Rf1 {[%clk 0:00:24.8]} 28... Ng4 {[%clk 0:01:04.4]} 29. Rxf8 {[%clk 0:00:24.3]}
29... Bxf8 {[%clk 0:01:04.6]} 30. Ng3 {[%clk 0:00:21]} 30... Ne3 {[%clk
0:00:53.9]} 31. c3 {[%clk 0:00:21.5]} 31... Nd1 {[%clk 0:00:54.2]} 32. Ne4
{[%clk 0:00:21.3]} 32... Be7 {[%clk 0:00:48.1]} 33. Kf1 {[%clk 0:00:17.4]} 33...
Nxb2 {[%clk 0:00:48.4]} 34. Ke2 {[%clk 0:00:18.4]} 34... Nc4 {[%clk 0:00:47.2]}
35. Nbd2 {[%clk 0:00:15.4]} 35... Nxd2 {[%clk 0:00:39.4]} 36. Kxd2 {[%clk
0:00:16.5]} 36... Kc6 {[%clk 0:00:38.6]} 37. c4 {[%clk 0:00:15.1]} 37... g4
{[%clk 0:00:36.9]} 38. Kd3 {[%clk 0:00:15.5]} 38... b5 {[%clk 0:00:37.2]} 39.
cxb5+ {[%clk 0:00:15.5]} 39... Kxb5 {[%clk 0:00:38]} 40. Kc3 {[%clk 0:00:11.1]}
40... Ka4 {[%clk 0:00:26.7]} 41. Kb2 {[%clk 0:00:07.5]} 41... Kb4 {[%clk
0:00:25.8]} 42. Nf2 {[%clk 0:00:08]} 42... h5 {[%clk 0:00:23.1]} 43. Nd3+ {[%clk
0:00:09]} 43... Kb5 {[%clk 0:00:20.4]} 44. Nxe5 {[%clk 0:00:09.8]} 44... Bf6
{[%clk 0:00:21.1]} 0-1

[Event "*** Titled Tuesday Blitz"]
[Site "Chess.com"]
[Date "2019.02.05"]
[Round "9"]
[White "Ekko_li"]
[Black "iLuusions"]
[Result "0-1"]
[WhiteElo "2466"]
[BlackElo "2621"]
[TimeControl "180+2"]
[EndTime "15:14:16 PST"]
[Termination "iLuusions won by resignation"]

1. e4 {[%clk 0:03:01.9]} 1... c5 {[%clk 0:03:00.4]} 2. Nf3 {[%clk 0:03:02.3]}
2... e6 {[%clk 0:03:00.4]} 3. c3 {[%clk 0:03:02.8]} 3... Nf6 {[%clk 0:03:00.8]}
4. e5 {[%clk 0:03:04]} 4... Nd5 {[%clk 0:03:01.9]} 5. d4 {[%clk 0:03:05.2]} 5...
cxd4 {[%clk 0:03:02.7]} 6. cxd4 {[%clk 0:03:06.3]} 6... d6 {[%clk 0:03:04.6]} 7.
Bc4 {[%clk 0:03:05.2]} 7... Be7 {[%clk 0:03:03.1]} 8. Qe2 {[%clk 0:03:05.8]}
8... O-O {[%clk 0:03:02.8]} 9. O-O {[%clk 0:03:07.1]} 9... b6 {[%clk 0:03:03.7]}
10. Re1 {[%clk 0:03:01.3]} 10... Bb7 {[%clk 0:02:42.8]} 11. Bd2 {[%clk
0:03:01.7]} 11... Nc6 {[%clk 0:02:30.3]} 12. Nc3 {[%clk 0:02:56]} 12... Nxc3
{[%clk 0:02:19.4]} 13. Bxc3 {[%clk 0:02:56.2]} 13... d5 {[%clk 0:02:16.5]} 14.
Bd3 {[%clk 0:02:55.5]} 14... Nb4 {[%clk 0:02:16.4]} 15. Bb1 {[%clk 0:02:51.7]}
15... Qd7 {[%clk 0:01:52.7]} 16. a3 {[%clk 0:02:48.3]} 16... Ba6 {[%clk
0:01:48.9]} 17. Qd2 {[%clk 0:02:38.9]} 17... Nc6 {[%clk 0:01:49.1]} 18. Ng5
{[%clk 0:02:37.3]} 18... h6 {[%clk 0:01:01.7]} 19. Nh7 {[%clk 0:02:35.9]} 19...
Rfc8 {[%clk 0:01:02.4]} 20. Nf6+ {[%clk 0:02:34.4]} 20... Bxf6 {[%clk
0:00:56.9]} 21. exf6 {[%clk 0:02:34]} 21... Qd8 {[%clk 0:00:56.9]} 22. fxg7
{[%clk 0:02:31.4]} 22... Qg5 {[%clk 0:00:54.9]} 23. Qd1 {[%clk 0:02:11.3]} 23...
Kxg7 {[%clk 0:00:48.8]} 24. Re3 {[%clk 0:02:10.3]} 24... Kf8 {[%clk 0:00:36.6]}
25. Rg3 {[%clk 0:02:08.4]} 25... Qf6 {[%clk 0:00:37.1]} 26. Rf3 {[%clk
0:01:54.7]} 26... Qg7 {[%clk 0:00:35.5]} 27. Qd2 {[%clk 0:01:50.6]} 27... Ke7
{[%clk 0:00:34.6]} 28. Qf4 {[%clk 0:01:42.6]} 28... Be2 {[%clk 0:00:26.3]} 29.
Rg3 {[%clk 0:01:39.2]} 29... Qf6 {[%clk 0:00:27.2]} 30. Qe3 {[%clk 0:01:35.9]}
30... Ba6 {[%clk 0:00:20.3]} 31. Bh7 {[%clk 0:01:30.7]} 31... Rh8 {[%clk
0:00:19.9]} 32. Bd3 {[%clk 0:01:19.3]} 32... Bxd3 {[%clk 0:00:21.1]} 33. Qxd3
{[%clk 0:01:21.2]} 33... a6 {[%clk 0:00:22.6]} 34. Rc1 {[%clk 0:01:16.2]} 34...
Kd7 {[%clk 0:00:23.5]} 35. Rf3 {[%clk 0:01:15.8]} 35... Qg7 {[%clk 0:00:24]} 36.
Rg3 {[%clk 0:01:09]} 36... Qf6 {[%clk 0:00:24.8]} 37. b4 {[%clk 0:01:07.3]}
37... b5 {[%clk 0:00:21.4]} 38. Bb2 {[%clk 0:01:06.4]} 38... Rac8 {[%clk
0:00:22]} 39. Rc5 {[%clk 0:01:04.8]} 39... Nd8 {[%clk 0:00:22.6]} 40. Rf3 {[%clk
0:00:52.6]} 40... Qe7 {[%clk 0:00:15.5]} 41. Rxc8 {[%clk 0:00:50.1]} 41... Kxc8
{[%clk 0:00:16]} 42. Qc2+ {[%clk 0:00:51.2]} 42... Kb8 {[%clk 0:00:15]} 43. Qc5
{[%clk 0:00:49.6]} 43... Qxc5 {[%clk 0:00:12.6]} 44. dxc5 {[%clk 0:00:50.6]}
44... Rg8 {[%clk 0:00:13.1]} 45. Be5+ {[%clk 0:00:49.8]} 45... Kc8 {[%clk
0:00:13.5]} 46. Bf6 {[%clk 0:00:49.4]} 46... Nc6 {[%clk 0:00:14.1]} 47. Kf1
{[%clk 0:00:48.8]} 47... Kd7 {[%clk 0:00:15.2]} 48. h3 {[%clk 0:00:48.4]} 48...
e5 {[%clk 0:00:16.6]} 49. g4 {[%clk 0:00:48.2]} 49... Ke6 {[%clk 0:00:18]} 50.
Bh4 {[%clk 0:00:49.2]} 50... Rg6 {[%clk 0:00:17.8]} 51. Re3 {[%clk 0:00:46.4]}
51... d4 {[%clk 0:00:18.1]} 52. Re1 {[%clk 0:00:45.5]} 52... Kd5 {[%clk
0:00:19.5]} 53. Ke2 {[%clk 0:00:46]} 53... e4 {[%clk 0:00:19.5]} 54. Kd2 {[%clk
0:00:46.6]} 54... Ne5 {[%clk 0:00:20.8]} 0-1

[Event "*** Titled Tuesday Blitz"]
[Site "Chess.com"]
[Date "2019.02.05"]
[Round "9"]
[White "ChristopherYoo"]
[Black "BogdanDeac"]
[Result "1/2-1/2"]
[WhiteElo "2675"]
[BlackElo "2741"]
[TimeControl "180+2"]
[EndTime "15:14:30 PST"]
[Termination "Game drawn - insufficient material"]

1. e4 {[%clk 0:03:01.9]} 1... c5 {[%clk 0:03:00.3]} 2. Nf3 {[%clk 0:03:02.7]}
2... d6 {[%clk 0:02:59]} 3. d4 {[%clk 0:03:01]} 3... cxd4 {[%clk 0:03:00.9]} 4.
Nxd4 {[%clk 0:03:02.6]} 4... Nf6 {[%clk 0:03:02.1]} 5. Nc3 {[%clk 0:03:02.6]}
5... a6 {[%clk 0:03:00.9]} 6. Nb3 {[%clk 0:03:03.6]} 6... Nbd7 {[%clk
0:02:52.9]} 7. Be2 {[%clk 0:03:01.9]} 7... g6 {[%clk 0:02:52.7]} 8. O-O {[%clk
0:03:02.5]} 8... Bg7 {[%clk 0:02:53.5]} 9. Be3 {[%clk 0:03:03.7]} 9... b5 {[%clk
0:02:53.3]} 10. f3 {[%clk 0:02:36.2]} 10... O-O {[%clk 0:02:50.7]} 11. a4 {[%clk
0:02:29.8]} 11... b4 {[%clk 0:02:50.5]} 12. Nd5 {[%clk 0:02:30.2]} 12... Nxd5
{[%clk 0:02:50.6]} 13. Qxd5 {[%clk 0:02:32.1]} 13... Rb8 {[%clk 0:02:45.7]} 14.
Rab1 {[%clk 0:02:32.7]} 14... Nb6 {[%clk 0:02:25.8]} 15. Qa5 {[%clk 0:02:30.7]}
15... Bd7 {[%clk 0:02:26.3]} 16. Bxa6 {[%clk 0:02:13]} 16... Nxa4 {[%clk
0:02:19.5]} 17. Qxd8 {[%clk 0:02:12]} 17... Rfxd8 {[%clk 0:02:19.7]} 18. Bd4
{[%clk 0:02:05.2]} 18... Ra8 {[%clk 0:02:03.4]} 19. Bb7 {[%clk 0:01:58.6]} 19...
Rab8 {[%clk 0:02:04.2]} 20. Ba6 {[%clk 0:01:59.3]} 20... Be6 {[%clk 0:02:01.6]}
21. Bxg7 {[%clk 0:01:55.9]} 21... Kxg7 {[%clk 0:01:59.1]} 22. Nd4 {[%clk
0:01:53.5]} 22... Rb6 {[%clk 0:01:59.5]} 23. Bb5 {[%clk 0:01:49]} 23... Nc5
{[%clk 0:01:58.2]} 24. Ra1 {[%clk 0:01:46.7]} 24... Rc8 {[%clk 0:01:58.1]} 25.
Ra7 {[%clk 0:01:42.4]} 25... Kf8 {[%clk 0:01:58.7]} 26. Rfa1 {[%clk 0:01:38.2]}
26... Rbb8 {[%clk 0:01:48]} 27. Be2 {[%clk 0:01:09.1]} 27... Bd7 {[%clk
0:01:47.5]} 28. R1a5 {[%clk 0:01:07.2]} 28... Be8 {[%clk 0:01:39.2]} 29. Kf2
{[%clk 0:00:59.1]} 29... e5 {[%clk 0:01:38.4]} 30. Nb5 {[%clk 0:00:52.5]} 30...
Nb7 {[%clk 0:01:34.3]} 31. Rxb7 {[%clk 0:00:51.1]} 31... Rxb7 {[%clk 0:01:27.6]}
32. Nxd6 {[%clk 0:00:51.9]} 32... Rxc2 {[%clk 0:01:26.6]} 33. Nxb7 {[%clk
0:00:50.7]} 33... Rxb2 {[%clk 0:01:27.6]} 34. Nd6 {[%clk 0:00:42.2]} 34... Bd7
{[%clk 0:01:27.7]} 35. Nc4 {[%clk 0:00:38.2]} 35... Rc2 {[%clk 0:01:28]} 36.
Nxe5 {[%clk 0:00:32]} 36... Be6 {[%clk 0:01:28.9]} 37. Rb5 {[%clk 0:00:24.3]}
37... b3 {[%clk 0:01:29.3]} 38. Ke3 {[%clk 0:00:19.2]} 38... Kg7 {[%clk
0:01:22.8]} 39. g4 {[%clk 0:00:15.8]} 39... b2 {[%clk 0:01:19.9]} 40. Nd3 {[%clk
0:00:16.2]} 40... Bc4 {[%clk 0:01:20.6]} 41. Rb4 {[%clk 0:00:13.8]} 41... h5
{[%clk 0:01:12.6]} 42. gxh5 {[%clk 0:00:14.4]} 42... gxh5 {[%clk 0:01:13.6]} 43.
f4 {[%clk 0:00:10.5]} 43... h4 {[%clk 0:01:13.7]} 44. h3 {[%clk 0:00:11.2]}
44... f5 {[%clk 0:01:14]} 45. e5 {[%clk 0:00:11]} 45... Kf8 {[%clk 0:01:14.1]}
46. Rb6 {[%clk 0:00:07.7]} 46... Ke7 {[%clk 0:01:13.1]} 47. Rb7+ {[%clk
0:00:06.3]} 47... Kd8 {[%clk 0:01:12.5]} 48. Kd4 {[%clk 0:00:05.5]} 48... Ba6
{[%clk 0:01:08.1]} 49. Rxb2 {[%clk 0:00:04.8]} 49... Rxb2 {[%clk 0:01:07.8]} 50.
Nxb2 {[%clk 0:00:05.8]} 50... Bxe2 {[%clk 0:01:09.7]} 51. e6 {[%clk 0:00:06]}
51... Bf1 {[%clk 0:01:08.3]} 52. Nd1 {[%clk 0:00:04.9]} 52... Bxh3 {[%clk
0:01:07.7]} 53. Nf2 {[%clk 0:00:04]} 53... Bg2 {[%clk 0:01:04.3]} 54. Ke5 {[%clk
0:00:05]} 54... h3 {[%clk 0:01:03.3]} 55. Kxf5 {[%clk 0:00:05.7]} 55... h2
{[%clk 0:01:00.5]} 56. Kf6 {[%clk 0:00:06.8]} 56... Ke8 {[%clk 0:01:01.1]} 57.
f5 {[%clk 0:00:07.9]} 57... h1=Q {[%clk 0:01:00.9]} 58. Nxh1 {[%clk 0:00:08.1]}
58... Bxh1 {[%clk 0:01:02.8]} 59. Kg7 {[%clk 0:00:08.1]} 59... Bd5 {[%clk
0:01:02.1]} 60. Kf6 {[%clk 0:00:09.2]} 60... Bc4 {[%clk 0:01:02.1]} 61. Kg7
{[%clk 0:00:07.7]} 61... Bxe6 {[%clk 0:01:02.2]} 62. fxe6 {[%clk 0:00:08.4]}
62... Ke7 {[%clk 0:01:03.3]} 63. Kg6 {[%clk 0:00:10]} 63... Kxe6 {[%clk
0:01:04.2]} 1/2-1/2

[Event "*** Titled Tuesday Blitz"]
[Site "Chess.com"]
[Date "2019.02.05"]
[Round "9"]
[White "r31415"]
[Black "Vulcanochess"]
[Result "0-1"]
[WhiteElo "2296"]
[BlackElo "2338"]
[TimeControl "180+2"]
[EndTime "15:14:31 PST"]
[Termination "Vulcanochess won by checkmate"]

1. e4 {[%clk 0:03:01.9]} 1... c5 {[%clk 0:03:00.2]} 2. Nf3 {[%clk 0:03:03.4]}
2... Nc6 {[%clk 0:03:01.1]} 3. d4 {[%clk 0:03:05.3]} 3... cxd4 {[%clk
0:03:02.1]} 4. Nxd4 {[%clk 0:03:07.2]} 4... Nf6 {[%clk 0:03:03.4]} 5. Nc3 {[%clk
0:03:08.8]} 5... e6 {[%clk 0:03:01.5]} 6. Ndb5 {[%clk 0:03:08.7]} 6... Bc5
{[%clk 0:03:01.9]} 7. Nd6+ {[%clk 0:02:59.6]} 7... Ke7 {[%clk 0:03:00.2]} 8.
Nxc8+ {[%clk 0:02:54.7]} 8... Rxc8 {[%clk 0:03:02.1]} 9. Be2 {[%clk 0:02:50.9]}
9... a6 {[%clk 0:02:59.7]} 10. O-O {[%clk 0:02:50.7]} 10... h6 {[%clk
0:03:00.8]} 11. Kh1 {[%clk 0:02:49.5]} 11... Re8 {[%clk 0:03:01.4]} 12. f4
{[%clk 0:02:37.3]} 12... d6 {[%clk 0:03:02.2]} 13. g4 {[%clk 0:02:32.1]} 13...
b5 {[%clk 0:03:00.8]} 14. Bf3 {[%clk 0:02:27.9]} 14... Kf8 {[%clk 0:02:54.7]}
15. Qe1 {[%clk 0:02:19.9]} 15... Nd4 {[%clk 0:02:51]} 16. Bd1 {[%clk 0:02:16.9]}
16... b4 {[%clk 0:02:50.5]} 17. Ne2 {[%clk 0:02:17.4]} 17... Nxe2 {[%clk
0:02:35.9]} 18. Qxe2 {[%clk 0:02:16.4]} 18... d5 {[%clk 0:02:31.8]} 19. e5
{[%clk 0:02:05.2]} 19... Ne4 {[%clk 0:02:32.3]} 20. Be3 {[%clk 0:01:55.1]} 20...
Qh4 {[%clk 0:02:30.2]} 21. Kg2 {[%clk 0:01:51.7]} 21... a5 {[%clk 0:01:49.7]}
22. a3 {[%clk 0:01:45.6]} 22... bxa3 {[%clk 0:01:44.8]} 23. Bxc5+ {[%clk
0:01:44.7]} 23... Rxc5 {[%clk 0:01:42.7]} 24. Rxa3 {[%clk 0:01:46.6]} 24... Rec8
{[%clk 0:01:40.6]} 25. c3 {[%clk 0:01:47.6]} 25... Kg8 {[%clk 0:01:38.7]} 26.
Bc2 {[%clk 0:01:44.7]} 26... Rb8 {[%clk 0:01:18.6]} 27. Bxe4 {[%clk 0:01:25.5]}
27... dxe4 {[%clk 0:01:18.5]} 28. Ra2 {[%clk 0:01:23.4]} 28... Rd5 {[%clk
0:01:09]} 29. Rd1 {[%clk 0:01:19.7]} 29... Rbd8 {[%clk 0:01:07.6]} 30. Rxd5
{[%clk 0:01:18.4]} 30... Rxd5 {[%clk 0:01:08.4]} 31. Ra4 {[%clk 0:01:05.2]}
31... e3 {[%clk 0:01:02.9]} 32. Rd4 {[%clk 0:01:01.9]} 32... Rxd4 {[%clk
0:00:55.4]} 33. cxd4 {[%clk 0:01:02.4]} 33... h5 {[%clk 0:00:50.1]} 34. h3
{[%clk 0:00:54.7]} 34... a4 {[%clk 0:00:48.1]} 35. Qf3 {[%clk 0:00:52]} 35...
hxg4 {[%clk 0:00:33.4]} 36. hxg4 {[%clk 0:00:51.7]} 36... Qe1 {[%clk 0:00:34.1]}
37. Qa8+ {[%clk 0:00:45.5]} 37... Kh7 {[%clk 0:00:34.1]} 38. Qe4+ {[%clk
0:00:34.3]} 38... g6 {[%clk 0:00:34.3]} 39. f5 {[%clk 0:00:14.4]} 39... Qf2+
{[%clk 0:00:32.7]} 40. Kh3 {[%clk 0:00:12]} 40... e2 {[%clk 0:00:20]} 41. fxg6+
{[%clk 0:00:13.1]} 41... fxg6 {[%clk 0:00:21]} 42. Qb7+ {[%clk 0:00:13.7]} 42...
Kh6 {[%clk 0:00:21.6]} 43. g5+ {[%clk 0:00:08.6]} 43... Kxg5 {[%clk 0:00:21]}
44. Qe7+ {[%clk 0:00:08.1]} 44... Kf4 {[%clk 0:00:20.4]} 45. Qf8+ {[%clk
0:00:03.6]} 45... Ke3 {[%clk 0:00:20.9]} 46. Qa3+ {[%clk 0:00:04.6]} 46... Ke4
{[%clk 0:00:19.6]} 47. Qxa4 {[%clk 0:00:03.2]} 47... Qf3+ {[%clk 0:00:18.7]} 48.
Kh4 {[%clk 0:00:03.6]} 48... e1=Q+ {[%clk 0:00:18.3]} 49. Kg5 {[%clk 0:00:05.5]}
49... Qf5+ {[%clk 0:00:18.8]} 50. Kh6 {[%clk 0:00:07.4]} 50... Qh4+ {[%clk
0:00:19.7]} 51. Kg7 {[%clk 0:00:09.3]} 51... Qe7+ {[%clk 0:00:19.8]} 52. Kh6
{[%clk 0:00:10.5]} 52... Qh5# {[%clk 0:00:20.4]} 0-1